bitfinex/quotes_ETHUSD_20251010
["timestamp","ask_amount","ask_price","bid_price","bid_amount"]
[1760109902870,0.001,4191.4,4188.2,0.12473449]
[1760109902871,0.1011,4191.3,4188.2,0.12473449]
[1760109903089,2.31952,4191.2,4188.1,4.9692865]
[1760109903236,1.92,4191.0,4188.1,4.9692865]
[1760109903442,20.400887,4190.7,4188.1,4.9692865]
[1760109903693,4.4769891,4190.6,4188.1,4.9692865]
[1760109904000,0.4678891,4190.5,4188.2,0.0238766]
[1760109904143,3.955,4190.7,4188.4,1.92]
[1760109904491,0.0002,4191.4,4190.6,0.2209]
[1760109904657,0.0002,4191.4,4190.7,0.02386236]
[1760109904658,0.1192,4191.3,4190.7,0.02386236]
[1760109904982,0.0002,4191.4,4189.3,0.4524]
[1760109905189,0.1192,4190.3,4189.4,0.1192]
[1760109905486,0.1192,4189.9,4188.5,0.4524]
[1760109905641,0.1192,4189.1,4188.5,0.4524]
[1760109905843,0.1011,4190.6,4188.1,4.9692865]
[1760109906076,0.1192,4189.7,4189.0,0.1192]
[1760109906245,0.1011,4191.3,4188.2,2.5933]
[1760109906246,0.071,4190.7,4188.2,2.5933]
[1760109906576,0.1192,4189.7,4189.6,2.3868627]
[1760109906749,0.0002,4191.4,4190.0,2.38663484]
[1760109906750,0.1192,4190.1,4190.0,2.38663484]
[1760109907079,0.1192,4190.1,4188.7,0.4524]
[1760109907242,0.1192,4189.3,4188.7,0.4524]
[1760109907436,0.05,4191.3,4187.9,0.00707026]
[1760109907437,0.1011,4190.0,4187.9,0.00707026]
[1760109907641,0.46958177,4190.3,4188.1,7.356976]
[1760109907899,3.20726601,4190.6,4188.3,2.38760356]
[1760109908215,0.1192,4189.1,4188.4,0.1192]
[1760109908351,0.1192,4188.5,4188.2,2.38766057]
[1760109908551,0.58926601,4190.2,4188.3,0.4524]
[1760109908772,0.1192,4188.9,4188.4,2.41142201]
[1760109908972,0.1192,4189.3,4188.6,0.1192]
[1760109909184,0.46958177,4190.5,4188.5,0.4524]
[1760109909504,0.1192,4189.7,4189.6,2.3868627]
[1760109909684,0.58926601,4191.0,4189.6,0.4524]
[1760109909685,0.1192,4189.9,4189.6,0.4524]
[1760109909857,0.1192,4190.3,4189.7,2.86303552]
[1760109910057,0.0002,4191.4,4189.8,2.38674877]
[1760109910362,0.1011,4191.3,4188.3,0.4524]
[1760109910576,7.012099,4191.0,4188.1,4.9692865]
[1760109910895,13.544474,4189.9,4188.1,4.9692865]
[1760109911190,3.09813351,4190.5,4188.1,4.9692865]
[1760109911191,0.58926601,4188.2,4188.1,4.9692865]
[1760109911408,0.78075111,4188.3,4188.1,4.9692865]
[1760109911698,0.78075111,4188.3,4187.0,5.0]
[1760109911699,1.92,4188.1,4187.0,5.0]
[1760109911991,1.18336641,4187.3,4187.0,5.0]
[1760109912190,4.51358177,4187.2,4187.0,5.0]
[1760109912488,5.5963132,4187.1,4187.0,5.0]
[1760109912688,4.51258177,4187.1,4187.0,5.0]
[1760109912986,6.43258177,4187.1,4187.0,5.0]
[1760109913188,4.799794,4186.7,4183.0,5.0981405]
[1760109913354,4.51258177,4187.1,4183.0,5.0981405]
[1760109913355,14.18842018,4186.6,4183.0,5.22216957]
[1760109913556,14.18842018,4186.6,4183.5,0.4524]
[1760109913557,2.38958177,4186.5,4183.5,0.4524]
[1760109913761,2.38958177,4186.5,4183.0,5.0981405]
[1760109913762,0.202,4185.6,4183.0,5.0981405]
[1760109913989,4.71058177,4185.6,4183.0,5.0981405]
[1760109914315,0.46958177,4185.6,4183.7,0.4524]
[1760109914461,0.58999189,4185.8,4183.0,5.0981405]
[1760109914656,0.1,4185.7,4183.4,3.94]
[1760109914962,4.04,4185.6,4183.3,3.94]
[1760109915175,1.35620031,4185.6,4183.0,5.0981405]
[1760109915399,4.82561854,4185.6,4183.0,5.0981405]
[1760109915562,8.8867255,4185.6,4183.0,5.0981405]
[1760109915759,1.74947511,4185.6,4183.0,5.0981405]
[1760109915964,0.78566658,4184.6,4183.0,5.0981405]
[1760109916184,3.946,4184.5,4183.0,5.0981405]
[1760109916385,2.39000023,4184.1,4183.0,5.0981405]
[1760109916759,12.2362,4184.1,4183.0,5.0981405]
[1760109917100,0.78369889,4183.6,4183.0,5.0981405]
[1760109917268,4.0322,4183.5,4183.0,5.0981405]
[1760109917461,0.55078177,4183.4,4183.0,5.0981405]
[1760109917663,3.949,4183.3,4183.0,5.0981405]
[1760109917864,0.55078177,4183.2,4183.0,5.0981405]
[1760109918161,7.070027,4183.1,4183.0,5.0981405]
[1760109918360,2.58142177,4183.1,4183.0,5.0981405]
[1760109918587,3.88260489,4183.1,4183.0,5.0981405]
[1760109918895,19.21628804,4182.8,4182.7,1e-08]
[1760109919192,12.98932481,4182.8,4182.7,1e-08]
[1760109919368,16.88730981,4182.8,4182.7,1e-08]
[1760109919776,1.92,4182.4,4180.5,5.16356749]
[1760109919975,20.85821624,4181.6,4180.5,5.16356749]
[1760109920214,25.27179801,4181.6,4180.5,5.16356749]
[1760109920366,0.76068177,4181.6,4180.5,5.16356749]
[1760109920568,0.099,4181.5,4180.5,5.16356749]
[1760109920798,6.031,4181.4,4180.5,5.16356749]
[1760109920999,3.21480034,4181.3,4180.5,5.16356749]
[1760109921201,6.01254334,4181.3,4180.5,5.16356749]
[1760109921365,9.25645854,4181.1,4181.0,1e-08]
[1760109921927,1.92,4180.9,4180.5,5.16356749]
[1760109922062,14.74082124,4180.6,4180.5,5.16356749]
[1760109922271,44.74082124,4180.1,4180.0,1.0]
[1760109922495,34.041063,4180.1,4180.0,1.0]
[1760109922690,34.60256517,4180.1,4180.0,1.0]
[1760109922869,15.46345812,4180.1,4180.0,1.0]
[1760109923071,14.65089295,4180.1,4180.0,1.0]
[1760109923267,44.65089295,4180.1,4180.0,1.0]
[1760109923497,45.11255329,4180.1,4180.0,1.0]
[1760109924010,32.019,4180.1,4180.0,1.0]
[1760109924318,0.099,4180.1,4180.0,1.0]
[1760109924523,4.037,4180.1,4180.0,1.0]
[1760109924684,4.0362,4180.1,4180.0,1.0]
[1760109925082,0.0982,4180.1,4180.0,1.0]
[1760109925289,0.178,4180.3,4180.0,1.0]
[1760109926585,1.92,4180.2,4180.0,1.0]
[1760109926944,12.2492,4180.1,4180.0,1.0]
[1760109927161,16.496094,4180.1,4180.0,1.0]
[1760109927310,30.0,4179.9,4178.0,5.22899449]
[1760109927506,2.732793,4179.2,4178.0,5.22899449]
[1760109927723,4.2501,4179.2,4178.0,5.22899449]
[1760109927956,0.3161,4179.2,4178.0,5.22899449]
[1760109928252,1.992,4181.1,4178.7,3.934]
[1760109928449,1.992,4181.1,4179.3,12.82082124]
[1760109928450,2.503,4181.1,4179.3,12.82082124]
[1760109928650,0.1013,4181.0,4179.3,16.75482124]
[1760109928942,0.1013,4181.0,4179.1,3.0]
[1760109928943,2.0944,4182.4,4180.3,2.39216357]
[1760109929144,34.0374,4182.3,4178.8,2.39301872]
[1760109929342,34.0374,4182.3,4178.8,16.75582124]
[1760109929343,28.434255,4182.1,4178.8,16.75582124]
[1760109929644,28.434255,4182.1,4178.1,12.82082124]
[1760109929843,1.92,4181.7,4178.3,12.82082124]
[1760109930049,1.992,4182.4,4178.0,7.29499449]
[1760109930050,30.0,4181.4,4178.0,5.22899449]
[1760109930363,4.2276,4181.6,4179.0,12.82082124]
[1760109930364,4.033,4181.3,4179.0,12.82082124]
[1760109930527,0.099,4181.2,4178.4,12.82082124]
[1760109930848,3.934,4181.3,4178.0,5.22899449]
[1760109930849,1.92,4180.9,4178.0,5.22899449]
[1760109931044,1.92,4180.7,4178.0,5.22899449]
[1760109931221,1.92,4180.3,4178.0,5.22899449]
[1760109931543,0.099,4180.2,4178.1,0.02393432]
[1760109931852,0.099,4180.2,4178.5,2.39319838]
[1760109932051,0.099,4180.2,4178.0,5.22899449]
[1760109932366,4.933603,4180.0,4178.0,5.22899449]
[1760109932534,0.099,4179.9,4178.0,5.22899449]
[1760109932857,1.92,4179.6,4178.0,5.22899449]
[1760109933077,1.92,4179.4,4179.1,2.999]
[1760109933219,4.004201,4179.3,4179.1,2.999]
[1760109933414,10.105405,4179.2,4179.1,2.999]
[1760109933619,12.025405,4179.2,4179.1,2.999]
[1760109933817,12.50382189,4179.2,4179.1,2.999]
[1760109934058,4.94993842,4179.2,4179.1,2.999]
[1760109934282,1.92,4179.1,4178.0,5.22899449]
[1760109934582,1.92,4178.7,4178.0,5.22899449]
[1760109934777,1.92,4178.4,4178.0,5.22899449]
[1760109934956,30.0,4178.2,4178.0,5.22899449]
[1760109935130,0.098,4178.1,4178.0,5.22899449]
[1760109935457,7.155998,4178.1,4178.0,4.04878271]
[1760109935659,7.155998,4178.1,4178.0,2.86659108]
[1760109935660,7.132648,4178.1,4178.0,2.86659108]
[1760109935831,7.59342735,4178.1,4178.0,2.86659108]
[1760109936283,32.45542935,4178.1,4178.0,2.86859108]
[1760109936635,1.92,4178.0,4177.3,0.004186]
[1760109936989,32.0877,4177.6,4177.5,0.0032]
[1760109937194,2.0877,4177.6,4177.5,0.0032]
[1760109937374,0.1677,4177.6,4177.5,0.0032]
[1760109937580,2.3657,4177.6,4177.5,0.0032]
[1760109937743,5.816877,4177.6,4177.5,0.0032]
[1760109938062,7.736877,4177.6,4177.5,0.0032]
[1760109938288,4.3847,4177.6,4177.5,0.0032]
[1760109939144,3.918,4178.2,4177.5,0.0032]
[1760109939376,0.099,4177.6,4177.5,0.0032]
[1760109939582,4.016,4177.6,4177.5,0.0032]
[1760109939874,3.916,4177.6,4177.5,0.0032]
[1760109940060,2.05193237,4177.6,4177.5,0.0032]
[1760109940480,2.266,4179.1,4177.5,0.0032]
[1760109940644,2.266,4179.0,4177.5,0.0032]
[1760109940848,3.914,4178.9,4177.5,0.0032]
[1760109941178,2.198479,4178.7,4177.5,0.0032]
[1760109941352,7.038634,4178.6,4177.5,0.0032]
[1760109941557,0.77307193,4179.5,4177.5,0.0032]
[1760109941745,3.913,4179.4,4177.5,0.0032]
[1760109941940,2.444667,4179.2,4177.5,0.0032]
[1760109942163,1.994,4179.9,4177.5,0.02713776]
[1760109942368,0.1192,4178.3,4177.7,0.1192]
[1760109942668,6.233,4180.2,4177.6,0.4469]
[1760109942669,0.109,4179.7,4177.8,0.4469]
[1760109942899,0.46784836,4181.0,4178.0,2.3934897]
[1760109943103,0.77307193,4181.7,4178.1,0.68973432]
[1760109943312,3.909,4181.9,4180.2,2.39222063]
[1760109943604,3.909,4182.4,4180.3,0.02392172]
[1760109943814,3.909,4182.4,4180.2,0.4469]
[1760109943815,3.909,4182.4,4181.2,2.39160347]
[1760109943972,3.909,4182.4,4181.3,0.23916035]
[1760109944171,3.909,4182.4,4180.3,0.925]
[1760109944464,0.46947634,4182.3,4179.1,0.4469]
[1760109944669,0.77307193,4181.7,4178.1,0.4469]
[1760109944907,3.3108,4181.0,4178.1,0.7469]
[1760109945110,0.77307193,4180.5,4177.9,0.43579]
[1760109945404,0.77307193,4179.3,4177.0,0.075796]
[1760109945705,0.77307193,4178.8,4177.0,0.075796]
[1760109946201,3.906,4178.7,4177.0,0.075796]
[1760109946504,0.46947634,4178.6,4177.0,0.075796]
[1760109946666,0.46947634,4178.6,4177.3,0.0281249]
[1760109946864,0.46867634,4178.6,4177.3,0.004186]
[1760109947071,3.904,4179.4,4177.6,0.47083718]
[1760109947267,0.77307193,4180.3,4177.6,0.4469]
[1760109947496,0.77307193,4180.4,4177.8,1.92]
[1760109947682,0.77307193,4179.2,4177.5,0.0032]
[1760109947884,1.92,4178.8,4177.0,0.075796]
[1760109948118,2.69307193,4178.0,4177.0,0.075796]
[1760109948298,0.77307193,4177.8,4177.0,0.075796]
[1760109948474,1.16618113,4180.3,4177.2,1.92]
[1760109948676,1.16618113,4180.6,4177.4,1.92]
[1760109948921,2.444,4180.9,4177.6,1.92]
[1760109949098,1.16618113,4181.6,4179.9,2.39239097]
[1760109949421,0.471,4182.0,4179.3,0.4469]
[1760109949422,1.636,4181.5,4179.3,0.4469]
[1760109949643,1.16618113,4181.0,4177.6,0.4469]
[1760109949855,1.16618113,4180.6,4177.6,0.4469]
[1760109950061,1.16618113,4180.6,4179.1,2.3928532]
[1760109950062,1.699,4180.5,4179.1,2.3928532]
[1760109950246,1.699,4181.2,4179.2,0.26321334]
[1760109950561,3.483,4181.5,4179.3,0.02392745]
[1760109950847,1.994,4182.3,4179.3,0.02392745]
[1760109950848,1.16718113,4182.8,4179.4,2.3669]
[1760109951020,0.001,4182.8,4180.7,1.92]
[1760109951221,0.001,4182.8,4180.6,14.18237861]
[1760109951222,0.001,4182.8,4180.9,1.92]
[1760109951420,0.001,4182.8,4182.6,2.39085007]
[1760109951624,0.001,4183.3,4183.2,2.39051443]
[1760109952068,0.001,4183.3,4182.6,0.4446]
[1760109952259,0.001,4183.3,4181.9,0.4446]
[1760109952573,0.001,4183.3,4181.0,0.55298189]
[1760109952711,0.001,4183.3,4181.1,1.945]
[1760109952915,0.1192,4182.2,4181.5,0.1192]
[1760109953167,0.001,4183.3,4181.5,0.4446]
[1760109953370,0.1192,4183.0,4182.7,2.39077873]
[1760109953570,0.1192,4183.0,4182.8,2.39070091]
[1760109953752,0.001,4183.3,4183.0,2.39062873]
[1760109954090,1.97291299,4186.4,4183.1,0.02390571]
[1760109954091,1.993,4186.4,4183.1,0.02390571]
[1760109954261,1.512,4187.1,4183.6,1.92]
[1760109954461,1.512,4187.4,4183.7,2.47650228]
[1760109954757,1.512,4187.4,4183.8,0.4446]
[1760109955080,6.06117,4187.3,4185.3,2.38930833]
[1760109955381,1.16618113,4189.0,4186.5,2.38862508]
[1760109955545,1.993,4188.7,4186.1,0.4446]
[1760109955745,1.993,4188.7,4185.4,0.4446]
[1760109956153,30.0,4188.6,4184.4,0.4446]
[1760109956569,1.92,4188.3,4185.0,2.38946795]
[1760109956771,3.7702,4188.2,4185.7,2.38905888]
[1760109956958,3.89,4188.1,4185.9,2.38896556]
[1760109957167,0.1222,4188.2,4185.1,0.4446]
[1760109957775,2.072,4188.1,4185.1,0.4446]
[1760109957982,0.34162,4188.0,4185.1,0.4446]
[1760109958152,10.014,4187.9,4184.6,0.4654]
[1760109958355,12.2145,4187.8,4185.0,2.38948381]
[1760109958568,0.21942,4188.0,4185.1,0.48929429]
[1760109958874,1.992,4188.4,4186.0,2.38890146]
[1760109959098,3.886,4188.8,4186.1,1.28858858]
[1760109959246,12.476223,4188.7,4184.1,2.38998507]
[1760109959601,1.92,4188.3,4184.0,0.4654]
[1760109959894,1.92,4187.9,4184.0,0.48930057]
[1760109960180,2.873473,4187.7,4185.1,2.38942815]
[1760109960354,1.16618113,4190.4,4189.0,2.38719106]
[1760109960686,1.57583841,4191.0,4187.9,0.4654]
[1760109960687,0.1066,4191.0,4187.9,0.4654]
[1760109960980,0.07,4190.9,4188.0,1.94387774]
[1760109961187,0.0002,4191.4,4187.6,0.2193]
[1760109961188,0.0002,4191.4,4188.2,13.71043097]
[1760109961485,0.0002,4191.4,4191.3,2.38589459]
[1760109961780,0.0002,4191.4,4191.3,0.02385894]
[1760109961979,0.0002,4191.4,4191.0,0.12398512]
[1760109962282,0.0002,4191.4,4191.2,2.38595151]
[1760109962458,0.00625,4194.1,4191.4,2.38583766]
[1760109962662,0.00625,4194.1,4191.5,2.44782746]
[1760109962848,0.00625,4194.1,4191.7,2.38566691]
[1760109963048,0.00625,4194.1,4193.8,2.38446475]
[1760109963249,0.00625,4194.1,4192.6,2.165]
[1760109963461,0.00625,4194.1,4193.9,2.3843638]
[1760109963649,0.00625,4194.1,4194.0,0.47688215]
[1760109963854,0.00625,4194.1,4194.0,0.94228215]
[1760109964164,2.0923,4196.8,4194.0,0.94228215]
[1760109964165,0.007812,4197.3,4194.0,2.88379718]
[1760109964356,0.02384358,4197.2,4194.1,1.918]
[1760109964558,0.02384358,4197.2,4192.7,0.53523282]
[1760109964559,0.02384358,4197.2,4194.2,1.918]
[1760109964767,0.007812,4197.3,4194.5,2.38407438]
[1760109964970,0.007812,4197.3,4194.6,0.02384017]
[1760109965154,0.4462,4197.2,4194.3,1.3708431]
[1760109965355,0.02384358,4197.1,4194.3,1.3708431]
[1760109965548,0.02384358,4197.1,4194.4,0.02384131]
[1760109965770,2.7552,4197.0,4193.2,11.79043097]
[1760109965970,3.381445,4196.8,4193.2,11.79043097]
[1760109966172,1.38984358,4196.7,4193.2,11.79043097]
[1760109966358,1.38984358,4196.7,4193.0,0.016]
[1760109966359,0.4462,4196.6,4193.0,0.016]
[1760109966560,0.02384358,4196.5,4193.4,2.3846933]
[1760109966768,1.92,4196.2,4193.3,2.3847423]
[1760109967071,1.92,4195.6,4192.4,2.38526858]
[1760109967381,0.47004358,4196.1,4191.6,2.38572382]
[1760109967382,2.44686,4195.3,4191.6,2.38572382]
[1760109967549,1.92,4195.0,4191.3,0.4654]
[1760109967748,1.92,4194.7,4191.3,0.4654]
[1760109967949,7.67304358,4194.6,4191.3,0.4654]
[1760109968160,0.80362096,4194.9,4191.4,2.40969603]
[1760109968358,0.02384358,4195.4,4191.5,0.4654]
[1760109968584,0.02384358,4196.2,4194.4,2.38410713]
[1760109968881,0.02384358,4196.2,4191.5,2.3854]
[1760109968882,0.02384358,4199.1,4194.5,1.48384074]
[1760109969079,0.22584358,4197.2,4194.8,2.38390376]
[1760109969380,0.22584358,4197.2,4194.5,0.4654]
[1760109969581,0.22584358,4197.2,4193.7,0.4654]
[1760109969785,0.042,4197.1,4193.7,0.4654]
[1760109970083,1.92,4196.7,4192.9,0.4654]
[1760109970288,1.92,4196.4,4192.9,0.4654]
[1760109970494,9.238966,4196.1,4192.3,0.4654]
[1760109970781,0.02384358,4196.0,4192.5,2.38521168]
[1760109970984,0.02384358,4196.0,4192.3,0.4654]
[1760109970985,0.4462,4195.9,4192.3,0.4654]
[1760109971153,0.25834358,4195.8,4192.4,0.02385268]
[1760109971352,1.92,4195.7,4192.6,2.38515479]
[1760109971553,6.341459,4195.5,4192.5,0.28745982]
[1760109971783,0.47004358,4195.6,4192.3,0.4654]
[1760109971784,0.02384358,4195.4,4192.3,0.4654]
[1760109971981,0.02384358,4195.4,4192.1,0.1058]
[1760109971982,0.02384358,4195.4,4192.4,0.7924]
[1760109972189,0.4462,4196.5,4192.5,6.6794]
[1760109972190,0.02384358,4196.4,4192.5,6.6794]
[1760109972394,2.15,4196.3,4192.7,2.3850979]
[1760109972563,2.15,4196.3,4192.5,6.214]
[1760109972564,7.865518,4196.1,4192.8,0.4654]
[1760109972759,4.35204358,4196.0,4192.1,0.1058]
[1760109972959,2.074929,4195.5,4191.9,0.4654]
[1760109973159,1.92,4195.8,4191.9,0.4654]
[1760109973160,1.92,4195.2,4191.9,0.4654]
[1760109973462,2.360319,4194.9,4192.0,0.02385496]
[1760109973806,1.92,4194.5,4190.9,0.1192]
[1760109973961,0.93254378,4194.4,4191.0,0.4654]
[1760109974161,1.92,4194.2,4191.0,0.4654]
[1760109974379,0.47004358,4194.1,4191.0,0.4654]
[1760109974675,1.92,4193.9,4193.1,0.003]
[1760109974860,0.2345,4193.2,4189.5,0.4654]
[1760109975064,3.565571,4193.0,4189.6,0.02386862]
[1760109975261,1.92,4192.7,4187.9,0.4654]
[1760109975499,25.735027,4192.3,4187.9,0.4654]
[1760109975797,30.0,4191.9,4187.0,0.4654]
[1760109975965,1.92,4191.6,4187.0,0.4654]
[1760109976165,1.92,4191.3,4187.0,0.4654]
[1760109976368,30.0,4191.0,4186.0,0.4654]
[1760109976562,1.92,4190.7,4186.0,0.4654]
[1760109976873,30.0,4190.2,4185.1,0.4654]
[1760109977074,1.92,4189.9,4185.1,0.4654]
[1760109977404,1.92,4189.5,4184.0,0.4654]
[1760109977617,1.92,4189.3,4184.0,0.4654]
[1760109977918,0.45085504,4189.2,4184.5,1.92]
[1760109978064,3.486,4189.1,4186.3,2.38871749]
[1760109978265,1.92,4188.8,4184.3,0.4654]
[1760109978506,0.47004358,4188.7,4184.3,0.4654]
[1760109978701,1.92,4188.5,4184.3,0.4654]
[1760109978996,4.34204358,4188.4,4184.4,0.48929828]
[1760109979167,1.92,4188.2,4185.5,2.38919435]
[1760109979363,1.92,4188.2,4185.2,2.38934504]
[1760109979364,2.95556,4188.0,4182.8,0.4654]
[1760109979591,1.92,4187.7,4182.9,0.48930685]
[1760109979794,1.92,4187.7,4181.9,0.4654]
[1760109979795,30.0,4187.4,4181.9,0.4654]
[1760109979995,2.56054292,4186.6,4180.6,3.871]
[1760109980213,1.92,4187.1,4180.7,0.5859]
[1760109980214,1.988,4185.0,4180.7,0.5859]
[1760109980390,30.0,4184.7,4178.9,0.12488762]
[1760109980592,1.92,4184.8,4178.5,0.4654]
[1760109980593,1.92,4184.4,4178.5,0.4654]
[1760109980800,30.57254292,4184.0,4178.5,0.4654]
[1760109981111,1.92,4183.7,4178.5,0.4654]
[1760109981265,30.0,4183.4,4179.1,2.39282782]
[1760109981462,1.92,4183.5,4179.1,2.39282782]
[1760109981463,1.02973901,4183.3,4179.2,0.23928278]
[1760109981668,6.262672,4183.1,4179.2,0.70468278]
[1760109981899,4.294624,4182.9,4179.2,0.4654]
[1760109982101,2.39004358,4182.8,4179.2,0.4654]
[1760109982308,1.92,4182.6,4179.2,0.4654]
[1760109982469,1.92,4182.6,4178.5,1.832]
[1760109982470,1.92,4182.4,4177.7,0.219]
[1760109982803,1.92,4182.0,4178.8,2.39302828]
[1760109982964,1.92,4182.0,4177.1,6.217]
[1760109982965,30.0,4181.6,4177.8,0.12506472]
[1760109983165,1.92,4181.3,4177.0,2.46981849]
[1760109983432,5.81184358,4181.5,4177.0,2.46981849]
[1760109983433,1.92,4180.8,4177.0,0.075796]
[1760109983727,0.02384358,4181.2,4177.0,0.075796]
[1760109983728,1.92,4180.4,4177.0,0.075796]
[1760109983923,0.47004358,4180.3,4177.0,0.075796]
[1760109984084,0.47004358,4180.3,4177.0,0.194996]
[1760109984291,0.47004358,4180.3,4177.1,0.02394005]
[1760109984507,0.7704432,4183.2,4177.1,0.02394005]
[1760109984508,0.1192,4178.6,4177.8,2.39355676]
[1760109984677,0.4462,4181.3,4178.1,0.92425568]
[1760109984867,0.31484358,4181.2,4178.2,2.39337513]
[1760109985067,1.43,4181.1,4178.3,2.3854]
[1760109985273,0.02384358,4181.0,4178.2,0.4654]
[1760109985598,0.4462,4182.4,4178.5,1.92]
[1760109985906,2.68204358,4182.3,4178.7,1.92]
[1760109986103,2.6582,4182.2,4178.7,1.92]
[1760109986267,0.02384358,4182.1,4180.0,2.39231314]
[1760109986470,0.305,4182.0,4180.0,2.39231314]
[1760109986807,0.305,4182.0,4178.6,4.3314]
[1760109986808,3.88784358,4181.9,4180.1,0.23923131]
[1760109987009,2.435,4181.8,4180.6,2.39198412]
[1760109987237,0.4462,4182.2,4179.3,0.4654]
[1760109987238,0.02384358,4181.7,4179.3,0.4654]
[1760109987539,0.4462,4182.2,4179.3,0.4654]
[1760109987859,0.4602,4181.6,4178.2,0.443]
[1760109988000,0.23884358,4181.5,4178.2,0.443]
[1760109988197,1.991,4181.4,4178.3,0.02393317]
[1760109988422,0.02384358,4181.5,4178.4,0.443]
[1760109988598,1.92,4181.3,4178.4,0.443]
[1760109988812,1.92,4181.1,4178.8,2.39299584]
[1760109989135,1.92,4181.1,4178.0,0.002]
[1760109989136,1.92,4180.9,4178.2,2.39337463]
[1760109989337,1.92,4180.7,4178.0,0.002]
[1760109989538,12.56004358,4180.8,4178.0,0.002]
[1760109989539,1.92,4180.5,4178.0,0.002]
[1760109989836,3.57284358,4180.4,4178.1,2.39343242]
[1760109990007,3.57284358,4180.4,4178.0,0.002]
[1760109990208,0.02384358,4180.4,4178.0,0.002]
[1760109990406,0.4602,4180.8,4178.0,0.002]
[1760109990710,1.991,4180.7,4178.2,1.92]
[1760109990915,0.2962,4181.0,4178.5,1.92]
[1760109991114,1.289,4180.9,4179.9,2.39239953]
[1760109991312,0.23084358,4180.8,4180.0,2.39229844]
[1760109991540,1.19584358,4181.6,4179.3,2.39269005]
[1760109991850,7.47,4184.2,4179.4,12.25735383]
[1760109991851,4.35,4183.0,4179.4,12.25735383]
[1760109992049,0.02384358,4182.9,4179.5,6.16466391]
[1760109992336,0.4602,4182.8,4179.5,1.85203538]
[1760109992522,0.48404358,4182.7,4179.5,0.443]
[1760109992725,0.48404358,4182.7,4179.6,2.39257345]
[1760109992911,0.02384358,4182.7,4179.5,0.443]
[1760109993238,30.0,4182.5,4178.0,0.002]
[1760109993413,30.0,4182.3,4178.0,0.002]
[1760109993614,0.48404358,4182.4,4178.0,0.002]
[1760109993615,1.92,4182.0,4178.0,0.002]
[1760109993815,30.0,4181.7,4178.0,2.39546897]
[1760109994023,30.0,4181.4,4178.0,0.002]
[1760109994207,14.01784358,4181.3,4178.0,0.002]
[1760109994407,1.92,4181.1,4178.0,0.002]
[1760109994634,1.92,4180.8,4178.0,0.24156128]
[1760109994826,1.92,4180.4,4178.5,0.002]
[1760109995023,1.92,4180.1,4178.5,0.002]
[1760109995306,10.10484358,4180.0,4178.5,0.002]
[1760109995506,12.073,4180.0,4178.5,0.002]
[1760109995739,0.4602,4180.3,4178.5,0.002]
[1760109995943,0.02384358,4180.2,4178.5,0.002]
[1760109996146,0.1192,4179.0,4178.5,0.002]
[1760109996352,0.1192,4178.6,4178.5,0.002]
[1760109996644,2.305,4179.7,4178.5,0.002]
[1760109996809,2.855,4180.2,4179.0,12.95172951]
[1760109997009,0.4602,4181.0,4179.3,2.39274519]
[1760109997010,0.1192,4179.5,4179.3,2.39274519]
[1760109997215,0.1192,4179.5,4179.1,2.39285959]
[1760109997411,0.1192,4179.5,4178.5,1.29737295]
[1760109997412,0.1192,4179.1,4178.5,1.29737295]
[1760109997613,0.1192,4178.8,4178.5,0.002]
[1760109997817,1.9,4179.3,4178.5,0.002]
[1760109997818,0.02384358,4179.2,4178.5,0.002]
[1760109998036,1.9,4179.3,4178.5,0.002]
[1760109998243,0.1192,4178.6,4178.5,0.002]
[1760109998409,0.4602,4181.2,4178.5,0.002]
[1760109998609,0.19084358,4181.1,4178.6,1.29537295]
[1760109998810,0.02384358,4181.1,4179.0,12.95172951]
[1760109999015,0.419,4181.6,4179.9,2.39240173]
[1760109999262,0.419,4181.6,4180.8,2.39186363]
[1760109999438,0.419,4181.6,4180.0,0.443]
[1760109999646,1.993,4182.3,4180.6,12.95172951]
[1760109999847,2.4532,4183.6,4181.4,12.95172951]
[1760110000035,1.60284358,4183.5,4181.4,12.95172951]
[1760110000234,1.60284358,4183.5,4182.2,12.95172951]
[1760110000235,1.579,4183.5,4182.2,12.95172951]
[1760110000453,0.02384358,4184.4,4182.3,0.02391028]
[1760110000635,3.857,4183.7,4181.6,12.95172951]
[1760110000837,0.02384358,4183.6,4181.7,1.29517295]
[1760110001074,0.02384358,4183.6,4181.2,0.443]
[1760110001075,3.08,4183.5,4181.6,12.95172951]
[1760110001381,0.02384358,4183.4,4182.6,2.39085524]
[1760110001520,0.02384358,4183.4,4181.1,2.39170673]
[1760110001521,3.856,4183.7,4182.7,0.023908]
[1760110001719,0.02384358,4183.6,4181.4,12.95172951]
[1760110001919,0.02384358,4183.6,4181.2,12.95172951]
[1760110002138,0.38798436,4183.5,4181.4,2.3915435]
[1760110002361,0.48404358,4183.4,4181.4,2.39153416]
[1760110002693,1.92,4183.1,4180.4,12.95172951]
[1760110002901,1.92,4182.9,4179.5,12.95172951]
[1760110003055,0.48404358,4182.8,4180.5,2.39202352]
[1760110003244,0.86196972,4182.7,4179.5,12.95172951]
[1760110003450,0.02384358,4182.6,4180.3,12.95172951]
[1760110003781,0.015,4182.5,4180.3,13.39472951]
[1760110003940,0.015,4182.5,4179.4,0.443]
[1760110003941,0.02384358,4182.4,4179.4,0.443]
[1760110004143,1.92,4182.2,4178.5,0.445]
[1760110004459,1.92,4181.7,4178.5,0.002]
[1760110004646,0.57254292,4181.2,4178.5,0.002]
[1760110004850,6.217616,4180.9,4178.5,0.002]
[1760110005081,1.92,4180.6,4178.5,0.002]
[1760110005254,0.02384358,4180.5,4178.5,0.002]